bitfinex-derivatives/quotes_SOLF0:USTF0_20250606
["timestamp","ask_amount","ask_price","bid_price","bid_amount"]
[1749221641641,6.6007,151.38,151.3,6.495]
[1749221641846,44.35045098,151.4,151.3,6.495]
[1749221641847,44.35045098,151.4,151.36,6.6013]
[1749221642344,6.6004,151.39,151.36,6.6439178]
[1749221642542,44.39262831,151.4,151.36,0.0426178]
[1749221642735,36.28217733,151.4,151.36,0.0426178]
[1749221642936,0.04217733,151.4,151.36,8.15306878]
[1749221643150,0.04217733,151.4,151.39,6.6002]
[1749221644734,0.04217733,151.4,151.36,0.0426178]
[1749221645336,0.04217733,151.4,151.38,6.6003]
[1749221646141,6.64197733,151.4,151.36,0.0426178]
[1749221646445,0.04217733,151.4,151.36,0.0426178]
[1749221647443,0.04217733,151.4,151.38,6.6006]
[1749221648550,0.04217733,151.4,151.39,6.6002]
[1749221648745,0.04217733,151.4,151.36,0.0426178]
[1749221649046,0.04217733,151.4,151.38,6.6004]
[1749221649249,0.04217733,151.4,151.36,0.0426178]
[1749221649448,6.6003,151.39,151.36,6.6437178]
[1749221651046,6.6003,151.39,151.37,6.601]
[1749221651350,0.04217733,151.4,151.36,0.0426178]
[1749221651747,6.64207733,151.4,151.37,6.6008]
[1749221652241,0.04217733,151.4,151.36,0.0426178]
[1749221652757,0.04217733,151.4,151.38,6.6004]
[1749221653649,0.04217733,151.4,151.39,6.6002]
[1749221654250,0.04217733,151.4,151.38,6.6005]
[1749221654448,0.04217733,151.4,151.36,0.0426178]
[1749221654953,0.04217733,151.4,151.38,6.6002]
[1749221655155,0.04217733,151.4,151.36,0.0426178]
[1749221656657,6.64217733,151.4,151.37,6.6007]
[1749221656854,12.6540803,151.39,151.36,0.0426178]
[1749221657060,48.87407614,151.39,151.36,0.0426178]
[1749221657257,14.71155098,151.37,151.36,0.0426178]
[1749221657757,8.11045098,151.37,151.36,0.0426178]
[1749221658153,11.1453394,151.38,151.36,0.0426178]
[1749221658154,6.6006,151.38,151.36,0.0426178]
[1749221658358,11.1453412,151.38,151.36,0.0426178]
[1749221658559,6.6011,151.37,151.36,0.0426178]
[1749221659455,36.22,151.39,151.36,0.0426178]
[1749221659859,0.04217733,151.4,151.37,6.6009]
[1749221660055,4.5762354,151.4,151.36,0.0426178]
[1749221660360,0.04217733,151.4,151.36,0.0426178]
[1749221660654,6.6009,151.38,151.36,0.0426178]
[1749221661656,6.6009,151.38,151.36,6.6440178]
[1749221662055,6.6003,151.39,151.36,6.6440178]
[1749221662554,6.6003,151.39,151.37,6.6011]
[1749221662758,6.6003,151.39,151.36,0.0426178]
[1749221662960,6.6008,151.38,151.36,6.6439178]
[1749221663366,6.6008,151.38,151.36,0.0426178]
[1749221663764,6.6011,151.37,151.36,0.0426178]
[1749221664166,14.71155098,151.37,151.36,0.0426178]
[1749221664363,14.71155098,151.37,151.3,2.2775]
[1749221664364,6.6026,151.34,151.3,2.2775]
[1749221665160,8.11045098,151.35,151.3,2.2775]
[1749221665466,0.04854418,151.34,151.33,6.6024]
[1749221665768,0.04854418,151.34,151.32,6.6031]
[1749221667967,0.04854418,151.34,151.31,6.65233255]
[1749221668268,0.04854418,151.34,151.31,0.04883255]
[1749221668460,0.04854418,151.34,151.32,6.603]
[1749221669268,6.65094418,151.34,151.32,6.603]
[1749221669668,0.04854418,151.34,151.32,6.603]
[1749221670870,6.65104418,151.34,151.32,6.603]
[1749221671168,0.04854418,151.34,151.31,6.65233255]
[1749221671364,6.6031,151.33,151.31,6.65233255]
[1749221671970,14.76159516,151.34,151.31,6.65233255]
[1749221672165,14.76159516,151.34,151.32,6.6032]
[1749221673469,0.04854418,151.34,151.33,6.6028]
[1749221673972,6.65114418,151.34,151.31,6.65213255]
[1749221674182,8.15899516,151.34,151.31,0.04883255]
[1749221674365,6.6031,151.33,151.31,0.04883255]
[1749221674680,8.11045098,151.32,151.31,0.04883255]
[1749221674873,8.15899516,151.34,151.31,0.04883255]
[1749221675565,6.6033,151.32,151.31,0.04883255]
[1749221675962,14.71375098,151.32,151.31,0.04883255]
[1749221676165,6.6044,151.3,151.27,6.6052]
[1749221676362,6.6044,151.3,151.26,36.18]
[1749221676768,6.6044,151.3,151.24,8.11045098]
[1749221676965,6.6044,151.3,151.23,513.5652507]
[1749221677166,0.04961063,151.28,151.25,0.04395359]
[1749221678772,0.04961063,151.28,151.27,6.6054]
[1749221679368,0.04961063,151.28,151.26,6.6057]
[1749221679574,8.16006161,151.28,151.25,0.04395359]
[1749221679772,14.76536161,151.28,151.25,0.04395359]
[1749221679968,8.16006161,151.28,151.25,0.04395359]
[1749221680478,6.6059,151.26,151.25,0.04395359]
[1749221681474,6.6056,151.27,151.25,0.04395359]
[1749221683078,6.6059,151.26,151.25,0.04395359]
[1749221683275,8.16006161,151.28,151.25,0.04395359]
[1749221683683,6.6056,151.27,151.25,0.04395359]
[1749221684980,0.04961063,151.28,151.25,0.04395359]
[1749221685373,0.04961063,151.28,151.27,6.6054]
[1749221687582,0.04961063,151.28,151.25,0.04395359]
[1749221687973,0.04961063,151.28,151.27,6.6054]
[1749221688882,0.04961063,151.28,151.26,6.6057]
[1749221689484,0.04961063,151.28,151.25,0.04395359]
[1749221689690,0.04961063,151.28,151.26,6.6059]
[1749221694683,0.04961063,151.28,151.27,6.6054]
[1749221695090,0.04961063,151.28,151.25,0.04395359]
[1749221695289,0.04961063,151.28,151.26,6.6056]
[1749221696887,0.04961063,151.28,151.27,6.6054]
[1749221697785,0.04961063,151.28,151.26,6.6057]
[1749221697990,0.04961063,151.28,151.25,0.04395359]
[1749221698396,0.04961063,151.28,151.26,6.6056]
[1749221698589,0.04961063,151.28,151.25,0.04395359]
[1749221698991,0.04961063,151.28,151.26,6.6059]
[1749221700190,0.04961063,151.28,151.27,6.6054]
[1749221700592,0.04961063,151.28,151.26,6.6057]
[1749221700787,36.14,151.27,151.22,8.06551389]
[1749221700997,8.11045098,151.24,151.18,8.06551389]
[1749221701195,8.11045098,151.24,151.16,14.31154879]
[1749221701196,8.11045098,151.24,151.17,8.06551389]
[1749221701494,8.11045098,151.22,151.17,8.06551389]
[1749221701694,8.11045098,151.22,151.16,38.241]
[1749221701695,8.11045098,151.22,151.16,46.30651389]
[1749221701992,0.04405029,151.21,151.17,0.05005768]
[1749221702589,6.65235029,151.21,151.17,0.05005768]
[1749221702793,0.04405029,151.21,151.17,0.05005768]
[1749221703191,6.6089,151.2,151.17,0.05005768]
[1749221704297,6.609,151.19,151.17,0.05005768]
[1749221706295,6.6094,151.18,151.17,0.05005768]
[1749221706996,6.6091,151.19,151.17,0.05005768]
[1749221707495,0.04405029,151.21,151.17,0.05005768]
[1749221707695,0.04405029,151.21,151.18,8.11045098]
[1749221708096,5.029e-05,151.21,151.2,14.71895098]
[1749221708488,36.14,151.29,151.2,8.11045098]
[1749221708690,36.14,151.29,151.22,8.11045098]
[1749221708895,36.14,151.29,151.24,8.11045098]
[1749221709097,42.7449,151.29,151.26,6.6056]
[1749221709296,36.14,151.29,151.24,8.11045098]
[1749221709599,0.04928272,151.28,151.25,0.04166321]
[1749221710193,0.04928272,151.28,151.26,6.6059]
[1749221710396,0.04928272,151.28,151.25,0.04166321]
[1749221711097,0.04928272,151.28,151.27,6.6055]
[1749221712498,36.14,151.32,151.3,6.6038]
[1749221712692,48.59055098,151.35,151.3,6.6038]
[1749221712991,8.11045098,151.33,151.25,44.25045098]
[1749221713195,8.11045098,151.31,151.25,36.14]
[1749221713595,6.6048,151.29,151.26,6.65489459]
[1749221713789,0.04488343,151.3,151.26,0.04929459]
[1749221714398,0.04488343,151.3,151.26,8.15974557]
[1749221715601,0.04488343,151.3,151.28,6.6048]
[1749221715794,0.04488343,151.3,151.26,8.15974557]
[1749221716096,0.04488343,151.3,151.28,6.6048]
[1749221716298,0.04488343,151.3,151.26,8.15974557]
[1749221718692,0.04488343,151.3,151.29,6.6046]
[1749221720100,0.04488343,151.3,151.28,6.6049]
[1749221720300,0.04488343,151.3,151.26,0.04929459]
[1749221720505,6.64938343,151.3,151.27,6.6054]
[1749221721407,0.04488343,151.3,151.28,6.605]
[1749221722102,6.64928343,151.3,151.27,6.6054]
[1749221723507,0.04488343,151.3,151.28,6.6049]
[1749221723898,0.04488343,151.3,151.26,0.04929459]
[1749221724499,0.04488343,151.3,151.28,6.605]
[1749221725911,6.64908343,151.3,151.28,6.605]
[1749221726415,0.04488343,151.3,151.28,6.605]
[1749221726817,0.04488343,151.3,151.27,6.6053]
[1749221727018,0.04488343,151.3,151.26,0.04929459]
[1749221727319,0.04488343,151.3,151.28,6.605]
[1749221727617,0.04488343,151.3,151.26,0.04929459]
[1749221728618,0.04488343,151.3,151.28,6.6048]
[1749221729720,0.04488343,151.3,151.29,6.6046]
[1749221730021,4.54342466,151.3,151.29,6.6046]
[1749221730623,4.54342466,151.3,151.28,6.6048]
[1749221730824,0.04488343,151.3,151.26,0.04929459]
[1749221732122,0.04488343,151.3,151.29,6.6046]
[1749221732519,4.54367371,151.3,151.29,6.6046]
[1749221732717,0.04488343,151.3,151.29,6.6046]
[1749221733527,0.04488343,151.3,151.29,14.71505098]
[1749221735526,0.04488343,151.3,151.29,6.6046]
[1749221735818,0.04488343,151.3,151.26,0.04929459]
[1749221736223,6.64928343,151.3,151.26,0.04929459]
[1749221736425,0.04488343,151.3,151.26,0.04929459]
[1749221736626,6.6055,151.27,151.26,0.04929459]
[1749221736827,4.50209961,151.27,151.2,8.06551389]
[1749221737121,8.11045098,151.24,151.19,36.06]
[1749221737326,6.6079,151.22,151.16,52.23596487]
[1749221737527,6.6079,151.22,151.19,6.6089]
[1749221737729,6.65307603,151.22,151.19,6.65948423]
[1749221738621,0.04517603,151.22,151.19,0.05058423]
[1749221740526,6.65317603,151.22,151.19,6.65928423]
[1749221740720,0.04517603,151.22,151.19,6.65928423]
[1749221741328,0.04517603,151.22,151.19,0.05058423]
[1749221741633,8.15562701,151.22,151.19,0.05058423]
[1749221741834,14.71895098,151.2,151.19,0.05058423]
[1749221742035,8.11045098,151.2,151.13,46.29765098]
[1749221742331,6.6098,151.18,151.14,6.6109]
[1749221742934,6.65446032,151.18,151.14,6.66002735]
[1749221743134,6.65446032,151.18,151.15,6.6106]
[1749221743335,0.04466032,151.18,151.14,0.04912735]
[1749221743934,0.04466032,151.18,151.15,6.6106]
[1749221744533,0.04466032,151.18,151.16,6.6102]
[1749221745328,2.1084,151.23,151.16,8.11045098]
[1749221745531,36.08,151.25,151.18,8.11045098]
[1749221745835,6.6075,151.23,151.2,6.6082]
[1749221746031,44.19045098,151.25,151.14,2.2643]
[1749221746233,8.11045098,151.23,151.14,2.2643]
[1749221746433,6.65498983,151.2,151.17,0.04747593]
[1749221746636,0.04628983,151.2,151.17,0.04747593]
[1749221747433,6.65488983,151.2,151.17,0.04747593]
[1749221747939,0.04628983,151.2,151.17,0.04747593]
[1749221748932,0.04628983,151.2,151.18,6.609]
[1749221749133,0.04628983,151.2,151.17,0.04747593]
[1749221750036,0.04628983,151.2,151.19,6.6088]
[1749221751441,0.04628983,151.2,151.18,6.6091]
[1749221753238,0.04628983,151.2,151.19,6.6088]
[1749221757040,0.04628983,151.2,151.17,0.04747593]
[1749221758039,0.04628983,151.2,151.18,6.6091]
[1749221758945,0.04628983,151.2,151.19,6.6089]
[1749221759644,0.04628983,151.2,151.18,6.6091]
[1749221760345,0.04628983,151.2,151.19,6.6089]
[1749221760546,0.04628983,151.2,151.17,0.04747593]
[1749221760748,0.04628983,151.2,151.18,6.609]
[1749221762443,6.65488983,151.2,151.18,6.609]
[1749221762644,0.04628983,151.2,151.17,0.04747593]
[1749221763149,6.6089,151.19,151.17,0.04747593]
[1749221765444,6.6093,151.18,151.17,0.04747593]
[1749221765645,0.04628983,151.2,151.17,0.04747593]
[1749221765849,6.6091,151.19,151.17,0.04747593]
[1749221766245,0.04628983,151.2,151.17,6.65717593]
[1749221767348,0.04628983,151.2,151.17,0.04747593]
[1749221767652,0.04628983,151.2,151.17,8.15792691]
[1749221768051,0.04628983,151.2,151.19,6.6089]
[1749221768755,0.04628983,151.2,151.18,6.6091]
[1749221768954,0.04628983,151.2,151.17,0.04747593]
[1749221769252,6.65478983,151.2,151.17,0.04747593]
[1749221769453,0.04628983,151.2,151.17,0.04747593]
[1749221769654,8.15674081,151.2,151.17,0.04747593]
[1749221770150,44.17674081,151.2,151.17,0.04747593]
[1749221770554,8.11045098,151.18,151.1,40.4593]
[1749221770753,8.11045098,151.18,151.1,48.56975098]
[1749221771150,6.61,151.17,151.1,48.56975098]
[1749221771355,6.6638,151.19,151.12,8.11045098]
[1749221771654,0.04830343,151.17,151.14,0.04687737]
[1749221771856,0.04830343,151.17,151.15,6.6106]
[1749221773051,0.04830343,151.17,151.16,6.6102]
[1749221773652,0.04830343,151.17,151.15,6.6104]
[1749221774050,0.04830343,151.17,151.14,8.15732835]
[1749221774343,0.04830343,151.17,151.16,6.6102]
[1749221774954,0.04830343,151.17,151.15,6.6105]
[1749221775260,0.04830343,151.17,151.14,0.04687737]
[1749221775460,0.04830343,151.17,151.15,6.6104]
[1749221775646,0.04830343,151.17,151.14,0.04687737]
[1749221776054,0.04830343,151.17,151.15,6.6102]
[1749221776248,0.04830343,151.17,151.14,0.04687737]
[1749221776759,0.04830343,151.17,151.16,6.6102]
[1749221777548,0.04830343,151.17,151.15,6.6104]
[1749221778558,0.04830343,151.17,151.16,6.6102]
[1749221779157,0.04830343,151.17,151.14,0.04687737]
[1749221779656,0.04830343,151.17,151.16,6.6102]
[1749221781361,0.04830343,151.17,151.16,14.67571389]
[1749221781662,0.04830343,151.17,151.16,6.6102]
[1749221781971,0.04830343,151.17,151.16,14.72065098]
[1749221782360,6.6081,151.21,151.18,6.609]
[1749221782864,6.6085,151.2,151.18,6.609]
[1749221783064,8.11045098,151.22,151.17,14.82890423]
[1749221783261,6.6087,151.2,151.17,14.82890423]
[1749221783459,0.04700052,151.21,151.18,0.05079292]
[1749221784266,0.04700052,151.21,151.18,8.27019715]
[1749221784667,0.04700052,151.21,151.19,6.6089]
[1749221785063,6.65500052,151.21,151.18,8.27019715]
[1749221785459,0.04700052,151.21,151.18,14.87929715]
[1749221785867,6.65510052,151.21,151.18,14.87929715]
[1749221786062,0.04700052,151.21,151.18,14.87929715]
[1749221786264,0.04700052,151.21,151.18,8.27019715]
[1749221786463,0.04700052,151.21,151.18,0.05079292]
[1749221786664,0.04700052,151.21,151.18,8.27019715]
[1749221786863,0.04700052,151.21,151.18,14.87919715]
[1749221787064,6.65520052,151.21,151.18,14.87919715]
[1749221787263,0.04700052,151.21,151.18,14.87919715]
[1749221787870,6.65520052,151.21,151.18,14.87919715]
[1749221788467,6.65520052,151.21,151.19,6.6088]
[1749221788669,0.04700052,151.21,151.19,6.6088]
[1749221788865,0.04700052,151.21,151.18,8.27019715]
[1749221789072,0.04700052,151.21,151.19,8.21940423]
[1749221790171,0.04700052,151.21,151.2,6.6084]
[1749221790374,0.04700052,151.21,151.19,8.21940423]
[1749221790974,0.04700052,151.21,151.19,14.82800423]
[1749221791577,0.04700052,151.21,151.2,6.6084]
[1749221791770,0.04700052,151.21,151.19,8.21940423]
[1749221792174,0.04700052,151.21,151.19,14.82810423]
[1749221792576,6.65530052,151.21,151.19,8.21940423]
[1749221792771,6.65530052,151.21,151.18,14.87929715]
[1749221792966,0.04700052,151.21,151.18,8.27019715]
[1749221793167,0.04700052,151.21,151.19,14.82800423]
[1749221793380,0.04700052,151.21,151.19,8.21940423]
[1749221793576,0.04700052,151.21,151.19,16.32985521]
[1749221793777,0.04700052,151.21,151.2,14.82780423]
[1749221794778,35.96,151.26,151.23,6.6068]
[1749221794973,12.51445098,151.28,151.23,6.6068]
[1749221795277,8.11045098,151.26,151.2,6.6083]
[1749221795677,6.6074,151.23,151.2,6.6083]
[1749221795979,0.04431256,151.23,151.2,0.04714967]
[1749221796178,6.6077,151.22,151.2,0.04714967]
[1749221796783,6.6077,151.22,151.2,6.65544967]
[1749221796982,6.65151256,151.23,151.2,0.04714967]
[1749221797279,6.65151256,151.23,151.21,6.6079]
[1749221797678,6.65151256,151.23,151.2,0.04714967]
[1749221797875,0.04431256,151.23,151.2,0.04714967]
[1749221798271,0.04431256,151.23,151.2,8.2665539]
[1749221798477,0.04431256,151.23,151.22,6.6076]
[1749221799476,0.04431256,151.23,151.21,6.6077]
[1749221799678,0.04431256,151.23,151.2,0.04714967]
[1749221800079,6.6078,151.22,151.2,0.04714967]
[1749221801683,6.6078,151.22,151.2,6.65554967]
[1749221804491,6.65171256,151.23,151.2,6.65554967]
[1749221805386,0.04431256,151.23,151.21,6.6079]
[1749221805882,0.04431256,151.23,151.2,6.65544967]
[1749221806485,0.04431256,151.23,151.2,0.04714967]
[1749221807087,0.04431256,151.23,151.2,6.65534967]
[1749221807283,6.65151256,151.23,151.2,6.65534967]
[1749221807483,6.65151256,151.23,151.2,0.04714967]
[1749221808080,6.65151256,151.23,151.2,6.65554967]
[1749221808282,0.04431256,151.23,151.2,6.65554967]
[1749221808587,0.04431256,151.23,151.22,14.71805098]
[1749221808790,8.8513,151.29,151.22,8.11045098]
[1749221808988,424.53045098,151.3,151.24,8.11045098]
[1749221809192,35.94,151.3,151.28,6.6049]
[1749221809388,48.62455098,151.33,151.26,8.11045098]
[1749221809583,4.43620097,151.32,151.26,8.11045098]
[1749221809786,0.04355178,151.31,151.27,0.04567721]
[1749221810183,6.64755178,151.31,151.27,6.65087721]
[1749221810384,8.11045098,151.29,151.27,0.04567721]
[1749221810986,6.605,151.28,151.27,0.04567721]
[1749221811380,44.05045098,151.29,151.19,8.21940423]
[1749221811581,44.05045098,151.29,151.17,12.21054879]
[1749221811582,6.6065,151.25,151.21,6.608]
[1749221811788,8.11045098,151.26,151.21,6.608]
[1749221812089,6.6064,151.25,151.21,6.608]
[1749221812490,6.65448644,151.25,151.21,6.65403608]
[1749221813094,0.04808644,151.25,151.22,6.6076]
[1749221813997,6.65448644,151.25,151.21,6.65393608]
[1749221814186,11.0907502,151.25,151.21,6.65393608]
[1749221814392,6.65448644,151.25,151.21,6.65393608]
[1749221815093,0.04808644,151.25,151.21,0.04603608]
[1749221815689,0.04808644,151.25,151.24,6.6067]
[1749221816792,44.05045098,151.29,151.27,6.6052]
[1749221816793,35.94,151.29,151.27,6.6052]
[1749221817093,8.11045098,151.31,151.24,8.11045098]
[1749221817287,6.6043,151.3,151.24,8.11045098]
[1749221817491,6.6043,151.3,151.26,6.6057]
[1749221817893,6.65093499,151.3,151.26,6.64869755]
[1749221818294,0.04663499,151.3,151.26,6.64869755]
[1749221819297,6.6046,151.29,151.26,0.04299755]
[1749221819595,0.04663499,151.3,151.26,0.04299755]
[1749221819795,6.65103499,151.3,151.26,6.64859755]
[1749221820297,6.6047,151.29,151.26,6.64859755]
[1749221820498,6.6047,151.29,151.26,0.04299755]
[1749221820697,0.04663499,151.3,151.26,0.04299755]
[1749221820896,6.6048,151.29,151.26,0.04299755]
[1749221821801,6.65083499,151.3,151.26,6.64889755]
[1749221821999,0.04663499,151.3,151.26,0.04299755]
[1749221822499,0.04663499,151.3,151.27,6.6054]
[1749221822801,0.04663499,151.3,151.26,8.15344853]
[1749221823305,4.51003561,151.29,151.27,6.6052]
[1749221823506,0.04663499,151.3,151.27,6.6052]
[1749221823507,4.51003561,151.28,151.27,6.6052]
[1749221823805,0.04663499,151.3,151.26,8.15344853]
[1749221824109,4.51012626,151.29,151.26,8.15344853]
[1749221824306,4.51018431,151.28,151.26,8.15344853]
[1749221824502,0.04663499,151.3,151.26,8.15344853]
[1749221824712,0.04663499,151.3,151.29,6.6046]
[1749221824907,4.5620844,151.3,151.29,6.6046]
[1749221825308,0.04663499,151.3,151.29,6.6046]
[1749221825510,4.56462029,151.3,151.29,6.6046]
[1749221825708,0.04663499,151.3,151.29,6.6046]
[1749221826207,0.04663499,151.3,151.26,35.92299755]
[1749221826507,0.04663499,151.3,151.27,8.11045098]
[1749221826909,0.04663499,151.3,151.29,6.6046]
[1749221828303,0.04663499,151.3,151.29,14.71505098]
[1749221828704,42.4821,151.35,151.31,6.6034]
[1749221829206,35.86,151.38,151.31,8.11045098]
[1749221829407,35.86,151.38,151.3,35.86]
[1749221829604,8.11045098,151.37,151.3,43.97045098]
[1749221829802,0.04946393,151.35,151.32,6.65346562]
[1749221830210,0.04946393,151.35,151.32,0.05046562]
[1749221830414,0.04946393,151.35,151.33,6.6028]
[1749221830706,0.04946393,151.35,151.32,0.05046562]
[1749221831016,0.04946393,151.35,151.34,6.6024]
[1749221831612,0.04946393,151.35,151.33,6.6027]
[1749221832412,0.04946393,151.35,151.32,14.7641166]
[1749221832616,0.04946393,151.35,151.32,6.65366562]
[1749221835317,6.65146393,151.35,151.32,0.05046562]
[1749221835519,0.04946393,151.35,151.32,0.05046562]
[1749221836511,8.11045098,151.33,151.32,0.05046562]
[1749221837118,14.71325098,151.33,151.32,0.05046562]
[1749221837514,8.15991491,151.35,151.32,0.05046562]
[1749221838615,0.04946393,151.35,151.32,0.05046562]
[1749221840224,6.65166393,151.35,151.32,0.05046562]
[1749221840421,0.04946393,151.35,151.32,0.05046562]
[1749221841123,6.6029,151.33,151.32,0.05046562]
[1749221844027,8.752,151.34,151.32,0.05046562]
[1749221844213,8.15991491,151.35,151.32,0.05046562]
[1749221844919,8.15991491,151.35,151.32,6.65356562]
[1749221845324,8.15991491,151.35,151.32,0.05046562]
[1749221845626,14.76191491,151.35,151.32,0.05046562]
[1749221846021,6.6025,151.34,151.32,0.05046562]
[1749221846824,14.76201491,151.35,151.32,0.05046562]
[1749221847023,8.15991491,151.35,151.32,0.05046562]
[1749221848014,14.76211491,151.35,151.32,0.05046562]
[1749221848218,0.04946393,151.35,151.32,0.05046562]
[1749221848719,0.04946393,151.35,151.32,6.65356562]
[1749221849121,0.04946393,151.35,151.32,0.05046562]
[1749221849728,0.04946393,151.35,151.34,6.6024]
[1749221849930,0.04946393,151.35,151.32,0.05046562]
[1749221850728,0.04946393,151.35,151.32,6.65356562]
[1749221851322,0.04946393,151.35,151.32,0.05046562]
[1749221852724,0.04946393,151.35,151.34,6.6024]
[1749221852924,0.04946393,151.35,151.32,0.05046562]
[1749221853430,0.04946393,151.35,151.33,6.6027]
[1749221853631,0.04946393,151.35,151.32,0.05046562]
[1749221853928,0.04946393,151.35,151.32,6.65356562]
[1749221854230,0.04946393,151.35,151.32,0.05046562]
[1749221854929,6.65176393,151.35,151.32,0.05046562]
[1749221855230,8.11045098,151.34,151.32,0.05046562]
[1749221855426,6.6029,151.33,151.32,0.05046562]
[1749221855630,8.11045098,151.34,151.32,0.05046562]
[1749221856324,0.04946393,151.35,151.32,0.05046562]
[1749221856930,6.65176393,151.35,151.32,0.05046562]
[1749221857424,6.6029,151.33,151.32,0.05046562]
[1749221857624,8.11045098,151.34,151.32,0.05046562]
[1749221858031,14.71315098,151.34,151.32,0.05046562]
[1749221858527,4.58984146,151.35,151.32,0.05046562]
[1749221858833,0.04946393,151.35,151.33,6.603]
[1749221859223,0.04946393,151.35,151.32,0.05046562]
[1749221860634,6.65166393,151.35,151.32,0.05046562]
[1749221860830,4.53539745,151.34,151.32,0.05046562]
[1749221861030,6.65166393,151.35,151.32,0.05046562]
[1749221861237,6.6026,151.34,151.32,0.05046562]
[1749221861439,4.53541215,151.33,151.32,0.05046562]
[1749221861630,4.53541828,151.33,151.32,0.05046562]
[1749221861939,4.53541441,151.33,151.32,0.05046562]
[1749221862537,19.25472776,151.33,151.32,0.05046562]
[1749221862834,14.71931335,151.33,151.32,0.05046562]
[1749221863338,19.25804869,151.33,151.32,0.05046562]
[1749221863636,14.72156757,151.33,151.32,0.05046562]
[1749221863825,12.65503207,151.33,151.32,0.05046562]
[1749221864337,12.65501997,151.33,151.32,0.05046562]
[1749221864532,12.65502393,151.33,151.32,0.05046562]
[1749221864735,14.72156757,151.33,151.32,0.05046562]
[1749221864935,19.25802269,151.33,151.32,0.05046562]
[1749221865130,12.6550752,151.33,151.26,8.21940423]
[1749221865331,6.6036,151.32,151.28,6.6051]
[1749221865633,4.52848064,151.31,151.28,6.6051]
[1749221865832,6.6036,151.32,151.28,6.6051]
[1749221866137,4.52684143,151.31,151.28,6.64908224]
[1749221866338,6.65438892,151.32,151.28,6.64908224]
[1749221866637,11.13075382,151.31,151.28,0.04398224]
[1749221866834,0.05078892,151.32,151.28,0.04398224]
[1749221867035,4.52686281,151.31,151.28,0.04398224]
[1749221867340,0.05078892,151.32,151.28,0.04398224]
[1749221867533,4.52537669,151.31,151.28,0.04398224]
[1749221867732,0.05078892,151.32,151.28,6.64908224]
[1749221867934,4.52536545,151.31,151.28,6.64908224]
[1749221868243,0.05078892,151.32,151.28,6.64908224]
[1749221868244,0.05078892,151.32,151.28,0.04398224]
[1749221868435,4.52538218,151.31,151.28,0.04398224]
[1749221868634,0.05078892,151.32,151.28,0.04398224]
[1749221868834,4.52537289,151.31,151.28,6.64878224]
[1749221869036,6.65448892,151.32,151.28,6.64878224]
[1749221869232,4.52549036,151.31,151.28,6.64878224]
[1749221869440,6.65448892,151.32,151.28,6.64878224]
[1749221869642,4.52549263,151.31,151.28,6.64878224]
[1749221869943,0.05078892,151.32,151.28,0.04398224]
[1749221870143,4.52017512,151.31,151.28,0.04398224]
[1749221870343,0.05078892,151.32,151.28,0.04398224]
[1749221870638,4.52017396,151.31,151.28,0.04398224]
[1749221870843,0.05078892,151.32,151.28,0.04398224]
[1749221871038,4.51223642,151.31,151.28,6.64898224]
[1749221871238,6.65438892,151.32,151.28,6.64898224]
[1749221871441,4.51223528,151.31,151.28,0.04398224]
[1749221871643,0.05078892,151.32,151.29,6.6045]
[1749221871943,4.51185574,151.31,151.29,6.6045]
[1749221872137,0.05078892,151.32,151.29,6.6045]
[1749221872533,4.51186127,151.31,151.29,6.6045]
[1749221872734,6.65418892,151.32,151.29,6.6045]
[1749221872944,4.51186127,151.31,151.29,6.6045]
[1749221873143,6.65418892,151.32,151.29,6.6045]
[1749221873343,4.51184562,151.31,151.29,6.6045]
[1749221873548,6.65418892,151.32,151.29,6.6045]
[1749221874044,4.51184562,151.31,151.29,6.6045]
[1749221874235,6.6044,151.3,151.28,0.04398224]
[1749221874641,4.51192116,151.29,151.28,0.04398224]
[1749221875445,10.24016757,151.31,151.28,0.04398224]
[1749221875740,16.84436757,151.31,151.28,0.04398224]
[1749221875947,4.51244321,151.3,151.28,0.04398224]
[1749221876144,16.84436757,151.31,151.28,0.04398224]
[1749221876347,11.11674321,151.3,151.28,0.04398224]
[1749221876647,6.6043,151.3,151.28,0.04398224]
[1749221876843,11.11825776,151.29,151.28,0.04398224]
[1749221877140,14.72326757,151.29,151.28,0.04398224]
[1749221877347,19.23684258,151.29,151.28,0.04398224]
[1749221877542,19.23687812,151.29,151.28,0.04398224]
[1749221877737,14.72326757,151.29,151.28,0.04398224]
[1749221877941,19.23687445,151.29,151.28,0.04398224]
[1749221878141,4.51361619,151.29,151.28,0.04398224]
[1749221878446,43.89856757,151.3,151.28,0.04398224]
[1749221878636,6.6047,151.29,151.28,0.04398224]
[1749221879350,4.51348239,151.29,151.28,0.04398224]
[1749221879842,9.02695778,151.29,151.28,0.04398224]
[1749221880048,9.01097566,151.29,151.28,0.04398224]
[1749221880248,9.01094857,151.29,151.28,0.04398224]